bitfinex-derivatives/quotes_SOLF0:USTF0_20251023
["timestamp","ask_amount","ask_price","bid_price","bid_amount"]
[1761184642630,4.07143708,181.89,181.88,3.51036034]
[1761184642829,2.89,181.92,181.88,1.95036034]
[1761184643134,6.96325428,181.91,181.9,1.95036034]
[1761184650326,2.68,181.9,181.88,3.52036034]
[1761184650633,6.75325428,181.89,181.87,1.57]
[1761184650928,2.68,181.89,181.87,1.57]
[1761184651329,2.68,181.92,181.87,1.57]
[1761184651530,2.68,181.9,181.87,1.57]
[1761184651731,6.75190694,181.89,181.87,1.57]
[1761184651929,2.68,181.89,181.87,1.57]
[1761184652129,4.07195457,181.88,181.87,1.57]
[1761184652626,4.07195457,181.88,181.86,1.95036034]
[1761184652933,2.68,181.91,181.84,1.57]
[1761184653129,2.68,181.89,181.85,1.57]
[1761184653329,4.0721104,181.88,181.85,1.57]
[1761184653629,2.68,181.89,181.85,1.57]
[1761184653832,4.07209736,181.88,181.86,3.52036034]
[1761184654033,2.68,181.89,181.86,3.52036034]
[1761184654221,4.0720986,181.88,181.86,3.52036034]
[1761184654423,2.68,181.89,181.86,3.52036034]
[1761184654626,4.07219225,181.88,181.86,3.52036034]
[1761184654821,2.68,181.89,181.86,3.52036034]
[1761184655024,4.07219225,181.88,181.86,3.52036034]
[1761184655235,2.68,181.89,181.86,3.52036034]
[1761184655425,4.07219798,181.88,181.86,1.95036034]
[1761184655632,2.68,181.91,181.87,1.57]
[1761184655932,6.75219688,181.9,181.87,1.57]
[1761184656132,4.07219688,181.89,181.87,1.57]
[1761184656329,4.07219688,181.88,181.87,1.57]
[1761184659128,6.75219688,181.88,181.86,3.52036034]
[1761184659334,2.68,181.88,181.86,3.52036034]
[1761184659632,2.68,181.91,181.87,1.57]
[1761184659828,2.68,181.89,181.88,1.95036034]
[1761184660029,4.07263406,181.89,181.88,3.52036034]
[1761184663338,2.68,181.93,181.88,3.52036034]
[1761184663539,2.68,181.91,181.9,1.95036034]
[1761184663732,6.75187855,181.91,181.9,1.95036034]
[1761184663931,4.07187855,181.91,181.9,3.52036034]
[1761184667640,2.68,181.94,181.9,3.52036034]
[1761184667839,6.75027573,181.93,181.92,1.95036034]
[1761184672740,2.68,181.92,181.89,1.57]
[1761184673043,4.07027573,181.91,181.89,1.57]
[1761184673239,2.68,181.92,181.89,1.57]
[1761184673442,4.07067439,181.91,181.89,1.57]
[1761184673645,2.68,181.92,181.89,1.57]
[1761184673839,2.68,181.9,181.82,1.57]
[1761184674044,2.68,181.88,181.82,4.61543048]
[1761184674241,6.85471125,181.94,181.75,22.16998441]
[1761184674242,2.68,181.86,181.79,4.61543048]
[1761184674437,4.07251423,181.85,181.79,4.61543048]
[1761184674643,2.68,181.83,181.8,1.57]
[1761184675045,2.68,181.83,181.79,4.61543048]
[1761184675840,2.68,181.83,181.8,1.57]
[1761184676042,2.68,181.88,181.8,1.57]
[1761184676245,2.68,181.86,181.8,1.57]
[1761184676445,2.68,181.84,181.8,1.57]
[1761184690256,2.68,181.84,181.78,1.57]
[1761184691054,2.68,181.84,181.77,45.48]
[1761184691261,2.68,181.84,181.77,47.05]
[1761184691652,2.68,181.84,181.78,1.57]
[1761184691857,2.68,181.84,181.8,1.57]
[1761184692346,4.06045843,181.83,181.76,1.57]
[1761184692551,2.75,181.82,181.76,1.57]
[1761184693462,2.75,181.82,181.76,4.61543048]
[1761184695153,2.75,181.82,181.77,1.57]
[1761184700568,2.75,181.86,181.77,1.57]
[1761184700768,6.80654531,181.85,181.79,4.61543048]
[1761184700964,2.75,181.85,181.79,4.61543048]
[1761184702172,5.13470526,181.89,181.8,1.57]
[1761184702173,2.75,181.89,181.8,1.57]
[1761184702367,2.75,181.87,181.8,1.57]
[1761184703067,2.75,181.87,181.82,4.61543048]
[1761184703372,2.75,181.87,181.83,1.57]
[1761184708274,2.75,181.87,181.82,48.52543048]
[1761184708472,2.71,181.85,181.82,48.52543048]
[1761184710975,2.71,181.85,181.82,50.08543048]
[1761184711372,2.71,181.85,181.82,48.52543048]
[1761184712670,2.71,181.85,181.82,45.48]
[1761184713267,2.71,181.85,181.79,4.60543048]
[1761184713469,2.71,181.85,181.81,1.56]
[1761184716672,2.83,181.83,181.81,1.56]
[1761184720775,2.83,181.86,181.81,1.56]
[1761184720979,2.83,181.84,181.81,1.56]
[1761184721182,2.83,181.87,181.81,1.56]
[1761184721480,6.9025634,181.86,181.83,1.56]
[1761184721686,2.83,181.86,181.84,45.48]
[1761184722483,6.90244008,181.85,181.84,45.48]
[1761184724383,4.07244008,181.85,181.84,45.48]
[1761184724676,4.07244008,181.85,181.84,47.04]
[1761184725077,2.83,181.87,181.85,1.56]
[1761184725277,6.90182792,181.86,181.84,45.48]
[1761184725480,2.83,181.86,181.84,45.48]
[1761184725976,2.83,181.86,181.84,47.04]
[1761184727179,2.83,181.9,181.84,47.04]
[1761184727373,2.83,181.88,181.85,1.56]
[1761184727580,6.90091481,181.87,181.85,1.56]
[1761184727781,2.83,181.87,181.84,45.48]
[1761184727976,2.83,181.87,181.84,47.04]
[1761184729583,2.83,181.87,181.85,1.56]
[1761184729787,2.83,181.9,181.85,1.56]
[1761184729983,2.83,181.88,181.84,45.48]
[1761184730181,2.83,181.86,181.84,45.48]
[1761184730774,2.83,181.86,181.82,4.60543048]
[1761184730976,2.83,181.86,181.83,47.02]
[1761184732679,5.14178688,181.91,181.84,1.56]
[1761184732878,2.83,181.89,181.84,1.56]
[1761184733083,2.83,181.87,181.84,1.56]
[1761184734684,2.83,181.87,181.85,1.95009994]
[1761184736992,2.83,181.91,181.85,1.95009994]
[1761184737296,2.83,181.89,181.85,3.51009994]
[1761184737592,6.89440281,181.88,181.85,3.51009994]
[1761184737790,2.83,181.88,181.85,3.51009994]
[1761184738386,4.06437068,181.87,181.85,3.51009994]
[1761184738595,2.83,181.88,181.85,3.51009994]
[1761184738889,4.06437068,181.87,181.85,3.51009994]
[1761184739090,2.83,181.88,181.85,3.51009994]
[1761184739290,4.06437068,181.87,181.85,3.51009994]
[1761184739589,2.83,181.88,181.85,3.51009994]
[1761184739790,4.06468634,181.87,181.85,3.51009994]
[1761184739991,2.83,181.88,181.85,3.51009994]
[1761184740190,4.06468634,181.87,181.85,3.51009994]
[1761184740387,2.83,181.88,181.85,3.51009994]
[1761184740587,6.97488119,181.87,181.85,3.51009994]
[1761184740887,4.0651726,181.86,181.83,48.98009994]
[1761184741095,2.91,181.86,181.83,48.98009994]
[1761184742089,2.91,181.86,181.8,3.52009994]
[1761184742397,5.14178688,181.9,181.81,47.03]
[1761184742398,2.91,181.84,181.81,47.03]
[1761184742796,2.91,181.84,181.81,45.46]
[1761184743298,4.06733596,181.83,181.81,45.46]
[1761184743594,2.91,181.82,181.81,45.46]
[1761184745396,6.97829112,181.82,181.81,45.46]
[1761184745996,2.91,181.82,181.81,45.46]
[1761184746402,6.97829805,181.82,181.81,45.46]
[1761184747207,2.91,181.82,181.81,45.46]
[1761184748905,6.97771546,181.82,181.81,45.46]
[1761184750810,2.91,181.81,181.77,1.57]
[1761184751111,2.91,181.79,181.76,47.03]
[1761184755600,2.91,181.79,181.76,45.46]
[1761184755805,2.91,181.77,181.73,3.52009994]
[1761184756008,2.91,181.77,181.73,1.95009994]
[1761184757107,2.91,181.8,181.76,1.95009994]
[1761184757310,2.91,181.8,181.77,1.57]
[1761184759007,2.91,181.8,181.76,47.41009994]
[1761184759008,2.91,181.8,181.78,1.95009994]
[1761184759206,2.91,181.8,181.78,3.52009994]
[1761184761306,2.91,181.8,181.78,1.95009994]
[1761184762818,2.91,181.8,181.78,3.52009994]
[1761184763112,2.91,181.8,181.78,1.95009994]
[1761184767926,2.91,181.8,181.76,45.46]
[1761184769131,2.7,181.78,181.76,45.46]
[1761184770124,4.05067124,181.77,181.72,1.95009994]
[1761184770324,2.7,181.76,181.68,1.95009994]
[1761184770531,2.7,181.74,181.69,45.48]
[1761184772017,2.7,181.74,181.69,47.05]
[1761184775728,2.7,181.74,181.71,1.57]
[1761184775923,4.04647744,181.76,181.71,1.57]
[1761184775924,2.7,181.76,181.71,1.57]
[1761184776526,2.7,181.75,181.71,1.57]
[1761184777424,2.7,181.75,181.73,1.57]
[1761184777731,2.7,181.8,181.73,1.57]
[1761184777929,5.14178688,181.83,181.73,1.57]
[1761184777930,2.7,181.78,181.75,1.95009994]
[1761184781634,2.7,181.77,181.75,1.95009994]
[1761184783726,5.14178688,181.82,181.75,3.52009994]
[1761184783927,2.7,181.8,181.75,3.52009994]
[1761184784127,2.7,181.78,181.75,3.52009994]
[1761184784736,2.7,181.76,181.75,1.95009994]
[1761184787032,6.7536403,181.8,181.76,1.57]
[1761184787231,4.0536403,181.79,181.78,1.95009994]
[1761184787538,4.0536403,181.79,181.76,3.52009994]
[1761184787837,2.7,181.79,181.76,3.52009994]
[1761184788737,2.7,181.79,181.76,1.95009994]
[1761184789041,6.755734,181.78,181.76,1.95009994]
[1761184789338,2.7,181.78,181.76,1.95009994]
[1761184790138,2.7,181.78,181.76,3.52009994]
[1761184790937,2.7,181.81,181.76,3.52009994]
[1761184791139,2.7,181.79,181.76,3.52009994]
[1761184791443,4.05664633,181.78,181.76,3.52009994]
[1761184791637,2.7,181.79,181.76,3.52009994]
[1761184791836,4.05740623,181.78,181.76,3.52009994]
[1761184792039,2.7,181.79,181.76,3.52009994]
[1761184792337,4.05749834,181.78,181.76,3.52009994]
[1761184792537,2.7,181.78,181.76,3.52009994]
[1761184792738,4.05915558,181.77,181.76,3.52009994]
[1761184792938,4.05908641,181.77,181.76,3.52009994]
[1761184793246,4.05908641,181.77,181.76,1.95009994]
[1761184793443,2.7,181.78,181.76,1.95009994]
[1761184793746,2.7,181.78,181.76,3.52009994]
[1761184794447,4.06044083,181.77,181.76,3.52009994]
[1761184794742,4.06044083,181.77,181.76,1.57]
[1761184796546,5.14178688,181.82,181.76,1.57]
[1761184796736,2.7,181.8,181.76,1.57]
[1761184796942,6.77154311,181.79,181.76,1.57]
[1761184797142,4.07154311,181.78,181.76,1.57]
[1761184797344,2.7,181.81,181.76,1.57]
[1761184797541,4.07194509,181.8,181.77,1.57]
[1761184797850,4.07194509,181.79,181.77,1.57]
[1761184798049,5.14178688,181.83,181.77,1.57]
[1761184798050,4.07194509,181.78,181.77,1.57]
[1761184800339,5.14178688,181.83,181.77,2.67]
[1761184800546,4.07201221,181.82,181.78,1.57]
[1761184800745,4.07201221,181.81,181.78,1.57]
[1761184800944,4.07201221,181.8,181.78,1.57]
[1761184801139,7.82178688,181.85,181.78,1.57]
[1761184801339,2.68,181.83,181.79,1.57]
[1761184801540,6.75172532,181.82,181.79,1.57]
[1761184801854,4.07172532,181.81,181.79,1.57]
[1761184802045,2.68,181.84,181.79,1.57]
[1761184802360,5.14178688,181.85,181.79,1.57]
[1761184802361,2.68,181.82,181.79,1.57]
[1761184802555,4.06897645,181.81,181.79,1.57]
[1761184802851,2.68,181.82,181.79,1.57]
[1761184803150,4.06896226,181.81,181.79,1.57]
[1761184803345,2.68,181.82,181.79,1.57]
[1761184803651,4.0683518,181.81,181.79,1.57]
[1761184803852,4.0683518,181.8,181.79,1.57]
[1761184804351,2.68,181.82,181.79,1.57]
[1761184804549,2.68,181.79,181.73,1.57]
[1761184804752,6.74820959,181.78,181.73,1.57]
[1761184804953,2.68,181.78,181.73,1.57]
[1761184805451,5.14178688,181.82,181.73,1.57]
[1761184805452,2.68,181.81,181.73,1.57]
[1761184805648,4.06908201,181.8,181.73,1.57]
[1761184805853,4.06908201,181.79,181.73,1.57]
[1761184806051,4.06908201,181.78,181.73,1.57]
[1761184806254,2.68,181.81,181.73,1.57]
[1761184806554,6.74917062,181.8,181.73,1.57]
[1761184806755,4.06917062,181.79,181.73,1.57]
[1761184806952,4.06917062,181.78,181.73,1.57]
[1761184807254,2.68,181.78,181.73,1.57]
[1761184812256,6.74874504,181.77,181.73,1.57]
[1761184812447,2.68,181.77,181.73,1.57]
[1761184814244,2.68,181.81,181.73,1.57]
[1761184814448,2.68,181.79,181.73,1.57]
[1761184814652,6.7515702,181.78,181.73,1.57]
[1761184814857,2.68,181.78,181.73,1.57]
[1761184815466,6.75006647,181.77,181.73,1.57]
[1761184815757,2.68,181.77,181.73,1.57]
[1761184815957,2.68,181.77,181.71,6.5218]
[1761184816154,4.07016243,181.76,181.71,1.57]
[1761184816361,2.68,181.75,181.71,1.57]
[1761184817757,5.14178688,181.8,181.71,1.57]
[1761184817961,6.75139968,181.79,181.72,1.57]
[1761184818150,4.07139968,181.78,181.72,1.57]
[1761184818351,4.07139968,181.77,181.72,1.57]
[1761184818561,4.07139968,181.76,181.72,1.57]
[1761184818757,2.68,181.79,181.75,1.57]
[1761184818962,4.07285482,181.78,181.75,1.57]
[1761184819162,4.07285482,181.77,181.75,1.57]
[1761184819365,2.68,181.8,181.75,1.57]
[1761184819563,2.68,181.78,181.75,1.57]
[1761184819861,4.07403345,181.77,181.75,1.57]
[1761184820160,2.68,181.78,181.75,1.57]
[1761184820351,4.07559535,181.77,181.75,1.57]
[1761184820555,2.68,181.78,181.75,1.57]
[1761184821560,2.68,181.81,181.75,1.57]
[1761184821753,4.07385562,181.8,181.77,1.57]
[1761184822058,4.07385562,181.79,181.77,1.57]
[1761184822264,2.68,181.83,181.77,1.57]
[1761184822454,6.75403107,181.82,181.77,1.57]
[1761184822651,4.07403107,181.81,181.77,1.57]
[1761184822856,4.07403107,181.8,181.77,1.57]
[1761184823052,2.68,181.82,181.77,1.57]
[1761184823258,6.75466024,181.81,181.77,1.57]
[1761184823563,4.07466024,181.8,181.77,1.57]
[1761184823765,2.68,181.81,181.77,1.57]
[1761184824067,4.07455444,181.8,181.77,1.57]
[1761184824264,2.68,181.81,181.77,1.57]
[1761184824564,4.07313883,181.8,181.77,1.57]
[1761184824757,2.68,181.81,181.77,1.57]
[1761184824952,4.07313528,181.8,181.77,1.57]
[1761184825158,2.68,181.81,181.77,1.57]
[1761184827066,2.68,181.81,181.76,3.05048273]
[1761184827265,2.75,181.79,181.74,3.05048273]
[1761184827469,2.75,181.77,181.74,3.05048273]
[1761184827666,2.75,181.77,181.7,51.982]
[1761184827863,6.81768005,181.76,181.72,1.57]
[1761184828065,2.75,181.76,181.72,1.57]
[1761184828364,2.79,181.74,181.7,47.04]
[1761184830164,2.79,181.74,181.7,45.46]
[1761184830375,2.79,181.74,181.71,1.58]
[1761184830857,4.07134461,181.73,181.71,1.58]
[1761184831059,2.79,181.74,181.71,1.58]
[1761184832572,7.93178688,181.78,181.71,1.58]
[1761184832763,4.07093376,181.77,181.71,1.58]
[1761184832967,6.86093376,181.76,181.71,1.58]
[1761184833171,6.86093376,181.75,181.71,1.58]
[1761184833370,6.86093376,181.74,181.71,1.58]
[1761184833567,2.79,181.74,181.71,1.58]
[1761184833772,5.14178688,181.79,181.71,1.58]
[1761184834074,2.79,181.77,181.71,1.58]
[1761184834275,2.79,181.75,181.71,1.58]
[1761184845579,2.79,181.75,181.7,45.46]
[1761184845777,2.79,181.75,181.7,47.04]
[1761184846085,2.79,181.75,181.64,12.95783331]
[1761184846086,2.79,181.73,181.64,47.99783331]
[1761184846275,2.79,181.71,181.64,47.99783331]
[1761184846476,2.79,181.69,181.65,1.58]
[1761184853284,2.79,181.69,181.64,46.41783331]
[1761184853491,2.79,181.69,181.64,45.46]
[1761184853677,2.79,181.67,181.64,45.46]
[1761184854080,2.79,181.65,181.64,45.46]
[1761184855288,2.79,181.65,181.57,4.9558]
[1761184855495,2.79,181.65,181.58,47.04]
[1761184856190,2.79,181.63,181.58,45.46]
[1761184858896,2.79,181.63,181.59,1.95634946]
[1761184859295,2.79,181.63,181.58,47.04]
[1761184859494,2.79,181.63,181.59,1.95634946]
[1761184859690,2.79,181.63,181.58,45.46]
[1761184859883,2.79,181.63,181.58,47.41634946]
[1761184860491,2.73,181.65,181.62,3.53634946]
[1761184860692,1.95634946,181.71,181.62,1.95634946]
[1761184860693,2.73,181.69,181.62,1.95634946]
[1761184860895,2.73,181.67,181.62,1.95634946]
[1761184861198,2.73,181.67,181.61,1.95634946]
[1761184861786,2.73,181.67,181.63,3.53634946]
[1761184861993,2.73,181.67,181.64,1.58]
[1761184862391,2.73,181.67,181.63,3.53634946]
[1761184866703,2.73,181.67,181.63,1.95634946]
[1761184867005,2.73,181.67,181.61,1.95634946]
[1761184867901,2.73,181.67,181.64,1.58]
[1761184869005,2.73,181.71,181.65,1.95634946]
[1761184869204,2.73,181.69,181.65,3.53634946]
[1761184870297,2.73,181.69,181.66,1.58]
[1761184872806,2.73,181.69,181.65,1.95634946]
[1761184875308,2.73,181.69,181.63,1.95634946]
[1761184875513,2.73,181.67,181.62,1.58]
[1761184876509,2.73,181.67,181.63,1.95634946]
[1761184876713,2.73,181.67,181.64,1.58]
[1761184882720,6.80399264,181.69,181.64,3.53634946]
[1761184883011,2.73,181.69,181.65,1.58]
[1761184883214,4.07562468,181.68,181.64,1.95634946]
[1761184883414,2.73,181.67,181.64,1.95634946]
[1761184883912,2.73,181.67,181.64,3.53634946]
[1761184885417,2.73,181.67,181.64,1.58]
[1761184886023,2.73,181.67,181.63,1.58]
[1761184886223,2.7,181.65,181.61,3.53634946]
[1761184886820,2.7,181.65,181.62,1.58]
[1761184887520,2.7,181.65,181.61,3.53634946]
[1761184888022,2.7,181.65,181.62,1.58]
[1761184888719,2.7,181.65,181.61,1.95634946]
[1761184889025,2.74,181.63,181.59,3.52634946]
[1761184890117,2.74,181.63,181.6,1.57]
[1761184890523,4.08112444,181.62,181.6,1.57]
[1761184890723,2.74,181.63,181.6,1.57]
[1761184890930,4.08284331,181.62,181.6,1.57]
[1761184891131,2.74,181.63,181.6,1.57]
[1761184891427,4.08351069,181.62,181.6,1.57]
[1761184891627,2.74,181.63,181.6,1.57]
[1761184891823,4.08176925,181.62,181.6,1.57]
[1761184892018,2.74,181.63,181.6,1.57]
[1761184892222,6.82227201,181.62,181.6,1.57]
[1761184892430,2.74,181.62,181.6,1.57]
[1761184894630,4.0777323,181.61,181.6,1.57]
[1761184894931,2.74,181.62,181.6,1.57]
[1761184895727,2.74,181.66,181.62,1.57]
[1761184895924,2.74,181.64,181.62,1.57]
[1761184896123,4.08057179,181.63,181.61,1.95634946]
[1761184896324,2.74,181.64,181.61,1.95634946]
[1761184896530,4.08079338,181.63,181.61,3.52634946]
[1761184896818,2.74,181.64,181.61,3.52634946]
[1761184898233,4.08321661,181.63,181.62,1.57]
[1761184898434,4.08321661,181.63,181.61,3.52634946]
[1761184898636,2.74,181.67,181.62,1.57]
[1761184898938,6.82339077,181.66,181.62,1.57]
[1761184899231,5.11330816,181.68,181.62,1.57]
[1761184899232,6.82339077,181.65,181.62,1.57]
[1761184899428,4.08339077,181.64,181.62,1.57]
[1761184899625,4.08339077,181.63,181.62,1.57]
[1761184904229,2.74,181.65,181.62,1.57]
[1761184904437,4.08549267,181.64,181.62,1.57]
[1761184904638,2.74,181.65,181.62,1.57]
[1761184904937,4.08549322,181.64,181.62,1.57]
[1761184905233,2.74,181.68,181.64,1.57]
[1761184905435,6.8280474,181.67,181.64,1.57]
[1761184905633,6.8280474,181.66,181.64,1.57]
[1761184905834,4.0880474,181.65,181.64,1.57]
[1761184907624,7.85330816,181.7,181.64,1.57]
[1761184907828,4.0830884,181.69,181.66,3.52634946]
[1761184908028,4.0830884,181.68,181.66,3.52634946]
[1761184908228,4.0830884,181.67,181.66,1.95634946]
[1761184910143,2.74,181.71,181.67,1.57]
[1761184910443,4.08209565,181.7,181.67,1.57]
[1761184910738,4.08209565,181.69,181.68,1.95634946]
[1761184911442,4.08209565,181.69,181.68,3.52634946]
[1761184911738,4.08209565,181.69,181.68,1.95634946]
[1761184911940,4.08209565,181.69,181.68,3.52634946]
[1761184915337,2.74,181.72,181.68,3.52634946]
[1761184915537,2.74,181.7,181.68,3.52634946]
[1761184918440,2.74,181.7,181.66,1.95634946]
[1761184918645,2.74,181.7,181.67,1.57]
[1761184920142,2.74,181.7,181.64,47.05]
[1761184920347,2.69,181.68,181.65,1.57]
[1761184920850,2.69,181.68,181.64,47.05]
[1761184921845,2.69,181.66,181.64,45.48]
[1761184922146,6.72488951,181.65,181.64,45.48]
[1761184922947,2.69,181.64,181.6,1.57]
[1761184924041,2.69,181.64,181.59,45.48]
[1761184926743,2.69,181.62,181.59,45.48]
[1761184926942,2.69,181.62,181.58,45.48]
[1761184927141,2.69,181.62,181.58,47.05]
[1761184927839,2.69,181.65,181.59,1.57]
[1761184928044,2.69,181.63,181.59,1.57]
[1761184929343,2.69,181.63,181.58,45.48]
[1761184930053,2.69,181.63,181.56,2.52836087]
[1761184930254,2.69,181.63,181.57,45.48]
[1761184930551,4.03645081,181.62,181.57,45.48]
[1761184930756,2.69,181.61,181.57,47.05]
[1761184931249,2.69,181.61,181.57,1.57]
[1761184931452,2.69,181.61,181.57,47.05]
[1761184932050,2.69,181.61,181.57,1.57]
[1761184932256,2.69,181.61,181.57,47.05]
[1761184932655,2.69,181.61,181.57,1.57]
[1761184932843,2.69,181.61,181.57,47.05]
[1761184933452,2.69,181.61,181.56,0.95836087]
[1761184933648,2.69,181.61,181.57,1.57]
[1761184934950,4.03701781,181.6,181.57,1.57]
[1761184935153,6.72729999,181.59,181.56,47.05]
[1761184935458,2.69,181.59,181.53,0.95850605]
[1761184935661,2.69,181.57,181.53,0.95850605]
[1761184935846,2.69,181.57,181.52,1.57]
[1761184936759,2.69,181.57,181.5,45.48]
[1761184937261,2.69,181.57,181.51,45.48]
[1761184938063,2.69,181.55,181.51,47.05]
[1761184939456,2.69,181.55,181.51,1.57]
[1761184939661,2.69,181.55,181.49,0.9587041]
[1761184939859,2.69,181.55,181.51,45.48]
[1761184941066,2.69,181.55,181.51,47.05]
[1761184941565,2.69,181.55,181.52,1.57]
[1761184942761,2.69,181.58,181.52,1.57]
[1761184943960,4.02497696,181.61,181.52,1.57]
[1761184944160,2.69,181.61,181.52,1.57]
[1761184944355,4.02497696,181.6,181.52,1.57]
[1761184944554,2.69,181.58,181.52,1.57]
[1761184945663,2.69,181.56,181.51,45.48]
[1761184945861,2.69,181.55,181.51,45.48]
[1761184946268,2.69,181.55,181.51,47.06]
[1761184949863,2.69,181.55,181.51,45.48]
[1761184950661,2.85,181.58,181.52,1.58]
[1761184954467,2.85,181.58,181.53,4.63309912]
[1761184954770,2.85,181.58,181.54,1.58]
[1761184958864,2.85,181.62,181.57,1.58]
[1761184959071,2.85,181.62,181.59,4.63309912]
[1761184959372,2.85,181.62,181.59,3.05309912]
[1761184959767,2.85,181.62,181.59,4.63309912]
[1761184961176,2.85,181.62,181.59,3.05309912]
[1761184961680,2.85,181.62,181.56,1.58]
[1761184961978,2.85,181.6,181.56,1.58]
[1761184965877,2.85,181.6,181.55,3.05309912]
[1761184966077,2.85,181.6,181.56,1.58]
[1761184966475,4.12740701,181.59,181.55,4.63309912]
[1761184966678,2.85,181.58,181.56,1.58]
[1761184966880,2.85,181.61,181.56,1.58]
[1761184967179,6.97731217,181.6,181.56,1.58]
[1761184967377,4.12731217,181.59,181.56,1.58]
[1761184967575,2.85,181.59,181.56,1.58]
[1761184969183,2.85,181.59,181.53,1.58]
[1761184969385,2.85,181.57,181.53,1.58]
[1761184973883,2.85,181.55,181.51,47.06]
[1761184974284,2.85,181.55,181.52,1.58]
[1761184976487,2.85,181.55,181.51,45.48]
[1761184976784,2.85,181.55,181.51,47.06]
[1761184977389,2.85,181.53,181.51,45.48]
[1761184977688,2.85,181.53,181.51,47.06]
[1761184977889,2.85,181.56,181.51,47.06]
[1761184978189,2.85,181.54,181.51,47.06]
[1761184978389,4.12118115,181.53,181.51,47.06]
[1761184978583,4.12118115,181.52,181.51,47.06]
[1761184978784,2.85,181.54,181.51,47.06]
[1761184978983,4.1209234,181.53,181.51,47.06]
[1761184979190,2.85,181.54,181.51,47.06]
[1761184979486,6.89012171,181.53,181.51,47.06]
[1761184979692,2.77,181.53,181.51,47.06]
[1761184980380,2.77,181.53,181.51,45.48]
[1761184983193,2.77,181.52,181.51,45.48]
[1761184985190,2.77,181.55,181.51,45.48]
[1761184985386,6.88813776,181.54,181.52,1.57]
[1761184985585,4.11813776,181.53,181.51,45.48]
[1761184985790,2.77,181.54,181.52,1.57]
[1761184985987,4.11814375,181.53,181.51,47.05]
[1761184986187,2.77,181.54,181.51,47.05]
[1761184986387,4.11885882,181.53,181.51,47.05]
[1761184986587,2.77,181.54,181.51,47.05]
[1761184986789,4.11889464,181.53,181.51,45.48]
[1761184986988,2.77,181.53,181.51,45.48]
[1761184988198,2.77,181.56,181.51,45.48]
[1761184988400,4.11929657,181.55,181.52,1.57]
[1761184988591,4.11929657,181.54,181.52,1.57]
[1761184988790,2.77,181.56,181.52,1.57]
[1761184988791,4.11929657,181.53,181.52,1.57]
[1761184988992,4.11929657,181.53,181.51,47.05]
[1761184989190,2.77,181.56,181.51,47.05]
[1761184989498,2.77,181.54,181.51,47.05]
[1761184989697,6.88923649,181.53,181.51,45.48]
[1761184989997,2.77,181.56,181.51,47.05]
[1761184990192,2.77,181.54,181.51,45.48]
[1761184990391,5.11330816,181.57,181.51,45.48]
[1761184990392,2.77,181.52,181.51,45.48]
[1761184991189,6.88892248,181.52,181.51,45.48]